fUST/lending_fUST_20250514
["ID","MTS","AMOUNT","RATE_DAILY","PERIOD"]
[360932426,1747154952790,-21461.95856684,0.00011896,2]
[360932427,1747154952810,-3984.90208504,0.000119,2]
[360932428,1747154952831,-416.41376901,0.00011951,2]
[360932429,1747154952853,-12331.72408041,0.00012,4]
[360932430,1747154963099,-5000.0,0.0001078,2]
[360932431,1747154963124,-500.0,0.00010996,2]
[360932432,1747154963145,-322.33777413,0.00010996,2]
[360932433,1747154963168,-500.0,0.00010996,2]
[360932434,1747154963190,-500.0,0.00010996,2]
[360932435,1747154963210,-500.0,0.00010996,2]
[360932436,1747154963232,-500.0,0.00010996,2]
[360932437,1747154963252,-500.0,0.00010996,2]
[360932438,1747154963273,-500.0,0.00010996,2]
[360932439,1747154963294,-500.0,0.00010996,2]
[360932440,1747154963314,-162.4553018,0.00011,2]
[360932442,1747154972083,-5000.0,0.0001089,2]
[360932443,1747154972454,-87.85100404,0.00011,2]
[360932444,1747154974105,-188.88024963,0.00011,2]
[360932499,1747155032434,-5000.0,0.0001089,2]
[360932501,1747155032445,-60.81344453,0.00011,2]
[360932503,1747155032454,-337.30700707,0.00011,2]
[360932506,1747155032464,-500.0,0.00011,2]
[360932509,1747155032474,-1200.0,0.00011998,2]
[360932512,1747155032483,-300.0,0.00011998,2]
[360932515,1747155032492,-300.0,0.00011999,2]
[360932518,1747155032502,-300.0,0.00011999,2]
[360932521,1747155032511,-500.0,0.00011999,2]
[360932523,1747155032520,-500.0,0.00011999,2]
[360932525,1747155032530,-13153.27591959,0.00012,4]
[360932527,1747155032539,-8518.29374918,0.00012,5]
[360932530,1747155032551,-23123.92524203,0.00012,5]
[360932532,1747155032560,-411.28069225,0.00012,2]
[360932533,1747155032569,-1299.91291053,0.00012325,2]
[360932535,1747155032581,-553.83063043,0.00012325,2]
[360932539,1747155032615,-475.9,0.00011999,2]
[360932617,1747155038198,-83.58689585,0.00011999,2]
[360932619,1747155038208,-500.0,0.00011999,2]
[360932620,1747155038224,-572.02865492,0.00011999,2]
[360932621,1747155038234,-500.0,0.00011999,2]
[360932622,1747155038244,-1397.40822062,0.00012325,2]
[360932623,1747155038303,-733.75032343,0.00012325,2]
[360932624,1747155038313,-1696.78,0.00012329,2]
[360932625,1747155038323,-1413.98,0.00012329,2]
[360932626,1747155038332,-704.10640271,0.00012329,2]
[360932923,1747155041354,-99.79679475,0.00012329,2]
[360932926,1747155041372,-374.41680254,0.00012329,2]
[360932928,1747155041381,-175.678528,0.00012478,2]
[360932930,1747155041392,-621.83362999,0.00012542,2]
[360932932,1747155041401,-972.97243685,0.00012749,2]
[360933069,1747155043683,-5000.0,0.00012205,2]
[360933072,1747155043693,-3011.92964816,0.00012749,2]
[360933074,1747155043708,-306.0,0.00012778,2]
[360933076,1747155043718,-491.34800819,0.000129,2]
[360933078,1747155043728,-491.34800812,0.000129,2]
[360933080,1747155043738,-4260.81711785,0.00012956,2]
[360933349,1747155046416,-981.93,0.00012329,2]
[360933351,1747155046426,-739.18288215,0.00012956,2]
[360933353,1747155046436,-5000.0,0.00012956,2]
[360933356,1747155046445,-151.0,0.00012956,2]
[360933358,1747155046459,-5000.0,0.00012956,2]
[360933360,1747155046467,-193.32175828,0.00012956,2]
[360933362,1747155046477,-2780.34067116,0.00012956,2]
[360933364,1747155046487,-207.4,0.00012956,2]
[360933366,1747155046496,-155.0,0.00012956,2]
[360933368,1747155046506,-155.0,0.00012967,2]
[360933370,1747155046515,-491.34800812,0.00013079,2]
[360933372,1747155046525,-253.0,0.00013171,2]
[360933374,1747155046535,-420.0,0.00013172,2]
[360933376,1747155046544,-3984.90208501,0.00013174,2]
[360933378,1747155046554,-1192.0,0.00013198,2]
[360933380,1747155046564,-500.0,0.00013273,2]
[360933382,1747155046574,-1504.16727411,0.00013325,2]
[360933384,1747155046583,-2333.90732117,0.00013506,2]
[360933435,1747155047058,-66.09267883,0.00013506,2]
[360933437,1747155047068,-160.0,0.00013539,2]
[360933439,1747155047077,-314.27581824,0.00013539,2]
[360933440,1747155047088,-160.0,0.00013539,2]
[360933441,1747155047099,-422.24190663,0.00013539,2]
[360933442,1747155047108,-160.0,0.00013539,2]
[360933443,1747155047118,-250.31360517,0.00013579,2]
[360933444,1747155047127,-303.853,0.00013598,2]
[360933445,1747155047136,-2725.46389326,0.00013598,2]
[360933446,1747155047161,-1259.43819175,0.00013598,2]
[360933447,1747155047170,-546.0,0.00013626,2]
[360933448,1747155047179,-2241.0,0.00013626,2]
[360933449,1747155047188,-710.0,0.00013626,2]
[360933450,1747155047198,-150.0,0.00013626,2]
[360933451,1747155047207,-234.871,0.00013626,2]
[360933452,1747155047219,-500.0,0.00013673,2]
[360933453,1747155047228,-500.0,0.00013673,2]
[360933454,1747155047237,-500.0,0.00013673,2]
[360933455,1747155047249,-500.0,0.00013673,2]
[360933456,1747155047258,-500.0,0.00013673,2]
[360933457,1747155047268,-500.0,0.00013673,2]
[360933458,1747155047277,-571.22256152,0.00013673,2]
[360933459,1747155047287,-500.0,0.00013673,2]
[360933460,1747155047296,-500.0,0.00013673,2]
[360933461,1747155047306,-500.0,0.00013673,2]
[360933462,1747155047315,-151.0,0.00013698,2]
[360933463,1747155047324,-151.0,0.00013698,2]
[360933464,1747155047333,-151.0,0.00013698,2]
[360933465,1747155047342,-151.0,0.00013698,2]
[360933466,1747155047352,-151.0,0.00013698,2]
[360933467,1747155047361,-151.0,0.00013698,2]
[360933468,1747155047370,-213.09556,0.00013698,2]
[360933469,1747155047379,-213.09556,0.00013698,2]
[360933470,1747155047389,-213.09556,0.00013698,2]
[360933471,1747155047398,-213.09556,0.00013698,2]
[360933472,1747155047408,-151.0,0.00013698,2]
[360933473,1747155047417,-151.0,0.00013698,2]
[360933474,1747155047427,-151.0,0.00013698,2]
[360933475,1747155047436,-151.0,0.00013698,2]
[360933476,1747155047445,-643.222997,0.00013698,2]
[360933477,1747155047456,-643.222997,0.00013698,2]
[360933478,1747155047465,-151.0,0.00013698,2]
[360933479,1747155047474,-151.0,0.00013698,2]
[360933480,1747155047483,-151.0,0.00013698,2]
[360933481,1747155047492,-151.0,0.00013698,2]
[360933482,1747155047502,-401.11380951,0.00013698,2]
[360933483,1747155047511,-533.88,0.00013698,2]
[360933484,1747155047522,-151.0,0.00013698,2]
[360933485,1747155047531,-400.0,0.00013698,2]
[360933486,1747155047540,-985.5,0.00013698,2]
[360933487,1747155047549,-400.0,0.00013698,2]
[360933488,1747155047558,-400.0,0.00013698,2]
[360933490,1747155047568,-534.29,0.00013698,2]
[360933491,1747155047578,-400.0,0.00013698,2]
[360933492,1747155047587,-400.0,0.00013698,2]
[360933494,1747155047597,-425.06,0.00013698,2]
[360933495,1747155047606,-400.0,0.00013698,2]
[360933496,1747155047616,-298.72020561,0.00013698,2]
[360933498,1747155047626,-178.73126691,0.00013698,2]
[360933523,1747155140908,-300.0,0.00011998,2]
[360933524,1747155140930,-500.0,0.00011999,2]
[360933525,1747155140953,-500.0,0.00011999,2]
[360933526,1747155140974,-500.0,0.00011999,2]
[360933527,1747155140995,-500.0,0.00011999,2]
[360933528,1747155141017,-500.0,0.00011999,2]
[360933529,1747155141282,-500.0,0.00011999,2]
[360933530,1747155141306,-500.0,0.00011999,2]
[360933531,1747155141328,-500.0,0.00011999,2]
[360933532,1747155141350,-262.0,0.00011999,2]
[360933536,1747155275073,-5000.0,0.00011879,2]
[360933537,1747155275097,-300.0,0.00011998,2]
[360933538,1747155275123,-500.0,0.00011998,2]
[360933540,1747155275145,-342.93416526,0.00011998,2]
[360933541,1747155275168,-500.0,0.00011998,2]
[360933542,1747155275190,-500.0,0.00011998,2]
[360933543,1747155275213,-500.0,0.00011998,2]
[360933544,1747155275235,-500.0,0.00011998,2]
[360933545,1747155275259,-500.0,0.00011998,2]
[360933546,1747155275281,-500.0,0.00011998,2]
[360933547,1747155275303,-500.0,0.00011998,2]
[360933548,1747155275324,-500.0,0.00011998,2]
[360933549,1747155275345,-500.0,0.00011998,2]
[360933550,1747155275366,-500.0,0.00011998,2]
[360933551,1747155275390,-500.0,0.00011998,2]
[360933552,1747155275412,-500.0,0.00011998,2]
[360933553,1747155275433,-500.0,0.00011998,2]
[360933554,1747155275454,-500.0,0.00011998,2]
[360933555,1747155275476,-500.0,0.00011998,2]
[360933556,1747155275497,-480.37466634,0.00011998,2]
[360933557,1747155275519,-500.0,0.00011998,2]
[360933558,1747155275541,-500.0,0.00011998,2]
[360933559,1747155275565,-500.0,0.00011998,2]
[360933560,1747155275589,-500.0,0.00011998,2]
[360933561,1747155275612,-192.7349486,0.00011998,2]
[360933562,1747155275635,-21089.9617378,0.00011999,2]
[360933563,1747155275658,-500.0,0.00011999,2]
[360933564,1747155275680,-3478.8,0.00011999,2]
[360933565,1747155275701,-238.0,0.00011999,2]
[360933566,1747155275724,-500.0,0.00011999,2]
[360933567,1747155275746,-500.0,0.00011999,2]
[360933568,1747155275768,-500.0,0.00011999,2]
[360933569,1747155275794,-222.56678181,0.00011999,2]
[360933570,1747155275815,-500.0,0.00011999,2]
[360933571,1747155275840,-500.0,0.00011999,2]
[360933572,1747155275864,-500.0,0.00011999,2]
[360933573,1747155275887,-500.0,0.00011999,2]
[360933574,1747155275909,-500.0,0.00011999,2]
[360933575,1747155275931,-500.0,0.00011999,2]
[360933576,1747155275955,-500.0,0.00011999,2]
[360933577,1747155275976,-500.0,0.00011999,2]
[360933578,1747155275998,-500.0,0.00011999,2]
[360933579,1747155276020,-500.0,0.00011999,2]
[360933580,1747155276042,-500.0,0.00011999,2]
[360933581,1747155276063,-500.0,0.00011999,2]
[360933582,1747155276085,-500.0,0.00011999,2]
[360933583,1747155276107,-500.0,0.00011999,2]
[360933584,1747155276129,-500.0,0.00011999,2]
[360933585,1747155276151,-500.0,0.00011999,2]
[360933586,1747155276173,-500.0,0.00011999,2]
[360933587,1747155276195,-500.0,0.00011999,2]
[360933588,1747155276218,-500.0,0.00011999,2]
[360933589,1747155276239,-500.0,0.00011999,2]
[360933590,1747155276262,-500.0,0.00011999,2]
[360933591,1747155276288,-500.0,0.00011999,2]
[360933592,1747155276311,-500.0,0.00011999,2]
[360933593,1747155276334,-500.0,0.00011999,2]
[360933594,1747155276356,-500.0,0.00011999,2]
[360933595,1747155276378,-500.0,0.00011999,2]
[360933596,1747155276402,-500.0,0.00011999,2]
[360933597,1747155276424,-500.0,0.00011999,2]
[360933598,1747155276446,-500.0,0.00011999,2]
[360933599,1747155276468,-500.0,0.00011999,2]
[360933600,1747155276490,-500.0,0.00011999,2]
[360933601,1747155276512,-500.0,0.00011999,2]
[360933602,1747155276535,-500.0,0.00011999,2]
[360933603,1747155276558,-500.0,0.00011999,2]
[360933604,1747155276581,-500.0,0.00011999,2]
[360933605,1747155276603,-500.0,0.00011999,2]
[360933606,1747155276629,-500.0,0.00011999,2]
[360933607,1747155276653,-500.00000001,0.00011999,2]
[360933608,1747155276678,-500.0,0.00011999,2]
[360933609,1747155276700,-500.0,0.00011999,2]
[360933610,1747155276722,-500.0,0.00011999,2]
[360933611,1747155276744,-500.0,0.00011999,2]
[360933612,1747155276766,-500.0,0.00011999,2]
[360933613,1747155276792,-500.0,0.00011999,2]
[360933614,1747155276814,-500.0,0.00011999,2]
[360933615,1747155276837,-500.0,0.00011999,2]
[360933616,1747155276861,-500.0,0.00011999,2]
[360933617,1747155276885,-500.0,0.00011999,2]
[360933618,1747155276906,-500.0,0.00011999,2]
[360933619,1747155276927,-476.44121344,0.00011999,2]
[360933620,1747155276948,-500.0,0.00011999,2]
[360933621,1747155276969,-500.0,0.00011999,2]
[360933622,1747155276992,-500.0,0.00011999,2]
[360933623,1747155277016,-500.0,0.00011999,2]
[360933624,1747155277039,-500.0,0.00011999,2]
[360933625,1747155277062,-500.0,0.00011999,2]
[360933626,1747155277085,-500.0,0.00011999,2]
[360933627,1747155277106,-500.0,0.00011999,2]
[360933628,1747155277127,-500.0,0.00011999,2]
[360933629,1747155277148,-410.10979061,0.00012328,2]
[360933630,1747155277170,-500.0,0.00012328,2]
[360933631,1747155277194,-500.0,0.00012328,2]
[360933632,1747155277216,-307.43419485,0.00012328,2]
[360933633,1747155277240,-500.0,0.00012328,2]
[360933634,1747155277262,-500.0,0.00012328,2]
[360933635,1747155277282,-818.28,0.00012329,2]
[360933636,1747155277302,-681.9,0.00012329,2]
[360933637,1747155277323,-568.25,0.00012329,2]
[360933638,1747155277345,-473.54,0.00012329,2]
[360933639,1747155277367,-394.62,0.00012329,2]
[360933640,1747155277390,-328.85,0.00012329,2]
[360933641,1747155277411,-274.04,0.00012329,2]
[360933642,1747155277432,-228.37,0.00012329,2]
[360933643,1747155277452,-676.77,0.00012329,2]
[360933644,1747155277474,-563.98,0.00012329,2]
[360933645,1747155277496,-469.98,0.00012329,2]
[360933646,1747155277517,-391.65,0.00012329,2]
[360933647,1747155277538,-326.37,0.00012329,2]
[360933648,1747155277559,-271.98,0.00012329,2]
[360933649,1747155277581,-226.65,0.00012329,2]
[360933650,1747155277611,-188.87,0.00012329,2]
[360933651,1747155277636,-157.4,0.00012329,2]
[360933652,1747155277660,-787.0,0.00012329,2]
[360933653,1747155277684,-888.14250128,0.00012524,2]
[360933674,1747156031142,-579.8345081,0.00011285,2]
[360933675,1747156046132,-956.77445363,0.00011172,2]
[360933676,1747156049120,-4043.22554637,0.00011172,2]
[360933677,1747156049142,-300.0,0.00011513,2]
[360933678,1747156049163,-300.0,0.00011513,2]
[360933679,1747156049184,-1200.0,0.00011514,2]
[360933680,1747156049205,-386.27124594,0.00011514,2]
[360933681,1747156049228,-500.0,0.00011514,2]
[360933682,1747156049251,-94.75368852,0.00011514,2]
[360933683,1747156051151,-5000.0,0.0001106,2]
[360933684,1747156051175,-405.24631148,0.00011514,2]
[360933685,1747156051196,-500.0,0.00011514,2]
[360933686,1747156051217,-500.0,0.00011514,2]
[360933687,1747156051239,-500.0,0.00011514,2]
[360933688,1747156051261,-500.0,0.00011514,2]
[360933689,1747156051283,-500.0,0.00011514,2]
[360933690,1747156051302,-500.0,0.00011514,2]
[360933691,1747156051323,-500.0,0.00011514,2]
[360933692,1747156051345,-500.0,0.00011514,2]
[360933693,1747156051365,-454.62559469,0.00011514,2]
[360933694,1747156051389,-342.22446296,0.00011514,2]
[360933695,1747156051411,-500.0,0.00011514,2]
[360933696,1747156051431,-500.0,0.00011514,2]
[360933697,1747156051455,-500.0,0.00011514,2]
[360933698,1747156051477,-500.0,0.00011514,2]
[360933699,1747156051500,-67.05936691,0.00011514,2]
[360933710,1747156145090,-165.7235016,0.00011211,2]
[360933711,1747156145114,-5000.0,0.00011399,2]
[360933712,1747156145137,-300.0,0.00011512,2]
[360933713,1747156145159,-500.0,0.00011513,2]
[360933714,1747156145184,-551.37544668,0.00011513,2]
[360933715,1747156145213,-500.0,0.00011513,2]
[360933716,1747156145235,-500.0,0.00011513,2]
[360933717,1747156145256,-185.10912925,0.00011513,2]
[360933718,1747156145277,-500.0,0.00011513,2]
[360933719,1747156145298,-500.0,0.00011513,2]
[360933720,1747156145320,-500.0,0.00011513,2]
[360933721,1747156145341,-500.0,0.00011513,2]
[360933722,1747156145364,-500.0,0.00011513,2]
[360933723,1747156145386,-500.0,0.00011513,2]
[360933724,1747156145409,-500.0,0.00011513,2]
[360933725,1747156145432,-425.15156665,0.00011513,2]
[360933764,1747156170104,-1794.86460455,0.00011398,2]
[360933819,1747156232554,-3205.13539545,0.00011398,2]
[360933821,1747156232564,-1200.0,0.00011512,2]
[360933823,1747156232574,-300.0,0.00011512,2]
[360933825,1747156232584,-300.0,0.00011514,2]
[360933827,1747156232593,-500.0,0.00011514,2]
[360933829,1747156232603,-407.22130315,0.00011514,2]
[360933831,1747156232612,-500.0,0.00011514,2]
[360933833,1747156232622,-353.90101436,0.00011514,2]
[360933835,1747156232632,-3088.4365889,0.00011515,2]
[360933837,1747156232642,-500.0,0.00011515,2]
[360933839,1747156232651,-187.12491154,0.00011515,2]
[360933841,1747156232660,-615.52960257,0.00012299,2]
[360933843,1747156232670,-176.735029,0.00012385,2]
[360933845,1747156232680,-551.1718338,0.00012429,2]
[360933847,1747156232689,-500.0,0.00012429,2]
[360933849,1747156232698,-500.0,0.00012429,2]
[360933851,1747156232708,-500.0,0.00012429,2]
[360933853,1747156232717,-500.0,0.00012429,2]
[360933855,1747156232726,-380.40778017,0.00012429,2]
[360933857,1747156232736,-24900.0,0.0001243,2]
[360933859,1747156232746,-683.98272982,0.00012524,2]
[360933861,1747156232756,-420.0,0.00012646,2]
[360933863,1747156232766,-151.0,0.00012652,2]
[360933865,1747156232774,-155.0,0.00012652,2]
[360933867,1747156232784,-207.4,0.00012652,2]
[360933869,1747156232793,-546.6711059,0.00012679,2]
[360933871,1747156232801,-1786.3980452,0.00012692,2]
[360933873,1747156232811,-153.5418284,0.00013425,2]
[360933875,1747156232820,-552.1611156,0.00013425,2]
[360933877,1747156232829,-160.0,0.00013456,2]
[360933878,1747156232838,-422.24190663,0.00013456,2]
[360933880,1747156232848,-314.27581824,0.00013456,2]
[360933882,1747156232857,-2400.0,0.00013506,2]
[360933883,1747156232867,-678.89581229,0.00013525,2]
[360933884,1747156232877,-1000.0,0.00013525,2]
[360933886,1747156232887,-589.2907588,0.00013573,2]
[360933888,1747156232897,-589.2907588,0.00013579,2]
[360933890,1747156232907,-589.2907588,0.00013586,2]
[360933893,1747156232917,-4758.8683943,0.0001359,2]
[360933895,1747156232926,-589.2907588,0.00013592,2]
[360933897,1747156232935,-339.15,0.00013598,2]
[360933898,1747156232945,-589.2907588,0.00013598,2]
[360933900,1747156232954,-22297.13287764,0.000136,3]
[360933902,1747156232964,-212.19047112,0.000136,3]
[360933904,1747156232973,-652.61296533,0.00013602,2]
[360933906,1747156232983,-208.91177212,0.00013604,2]
[360933908,1747156232995,-175.7170149,0.00013644,2]
[360933910,1747156233004,-569.1666344,0.00013644,2]
[360933912,1747156233014,-175.7170149,0.00013644,2]
[360933914,1747156233024,-500.0,0.00013673,2]
[360933916,1747156233033,-500.0,0.00013673,2]
[360933918,1747156233044,-500.0,0.00013673,2]
[360933920,1747156233057,-500.0,0.00013673,2]
[360933923,1747156233067,-500.0,0.00013673,2]
[360933925,1747156233077,-500.0,0.00013673,2]
[360933927,1747156233087,-432.27088098,0.00013673,2]
[360933929,1747156233098,-500.0,0.00013673,2]
[360933930,1747156233109,-500.0,0.00013673,2]
[360933931,1747156233119,-500.0,0.00013673,2]
[360933932,1747156233130,-500.0,0.00013673,2]
[360933933,1747156233139,-500.0,0.00013673,2]
[360933934,1747156233150,-500.0,0.00013673,2]
[360933935,1747156233159,-500.44116134,0.00013673,2]
[360933936,1747156233169,-500.0,0.00013673,2]
[360933937,1747156233179,-500.0,0.00013673,2]
[360933938,1747156233189,-500.0,0.00013673,2]
[360933939,1747156233199,-500.0,0.00013673,2]
[360933940,1747156233209,-500.0,0.00013673,2]
[360933941,1747156233219,-500.0,0.00013673,2]
[360933942,1747156233229,-3541.034274,0.0001369,2]
[360933943,1747156233241,-151.0,0.00013698,2]
[360933944,1747156233252,-151.0,0.00013698,2]
[360933945,1747156233263,-151.0,0.00013698,2]
[360933946,1747156233273,-152.832727,0.00013698,2]
[360933947,1747156233282,-151.0,0.00013698,2]
[360933948,1747156233292,-172.718298,0.00013698,2]
[360933949,1747156233301,-151.0,0.00013698,2]
[360933950,1747156233310,-151.0,0.00013698,2]
[360933951,1747156233320,-151.0,0.00013698,2]
[360933952,1747156233330,-151.0,0.00013698,2]
[360933953,1747156233339,-151.0,0.00013698,2]
[360933954,1747156233349,-151.0,0.00013698,2]
[360933955,1747156233359,-151.0,0.00013698,2]
[360933956,1747156233369,-151.0,0.00013698,2]
[360933957,1747156233379,-151.0,0.00013698,2]
[360933958,1747156233388,-151.0,0.00013698,2]
[360933959,1747156233397,-151.0,0.00013698,2]
[360933960,1747156233407,-151.0,0.00013698,2]
[360933961,1747156233418,-151.0,0.00013698,2]
[360933962,1747156233427,-151.0,0.00013698,2]
[360933963,1747156233437,-151.0,0.00013698,2]
[360933964,1747156233447,-151.0,0.00013698,2]
[360933965,1747156233458,-151.0,0.00013698,2]
[360933966,1747156233470,-151.0,0.00013698,2]
[360933967,1747156233480,-151.0,0.00013698,2]
[360933968,1747156233491,-151.0,0.00013698,2]
[360933969,1747156233501,-151.0,0.00013698,2]
[360933970,1747156233511,-406.58709756,0.00013698,2]
[360933971,1747156233521,-328.89976768,0.00013698,2]
[360933972,1747156233531,-170.476448,0.00013698,2]
[360933973,1747156233541,-170.476448,0.00013698,2]
[360933974,1747156233551,-170.476448,0.00013698,2]
[360933975,1747156233562,-170.476448,0.00013698,2]
[360933976,1747156233572,-400.0,0.00013698,2]
[360933977,1747156233582,-400.0,0.00013698,2]
[360933978,1747156233593,-400.0,0.00013698,2]
[360933980,1747156233602,-400.0,0.00013698,2]
[360933982,1747156233613,-400.0,0.00013698,2]
[360933984,1747156233622,-246.8161013,0.00013698,2]
[360933986,1747156233632,-400.0,0.00013698,2]
[360933988,1747156233642,-400.0,0.00013698,2]
[360933990,1747156233652,-400.0,0.00013698,2]
[360933991,1747156233662,-400.0,0.00013698,2]
[360933992,1747156233671,-578.900698,0.00013698,2]
[360933993,1747156233681,-400.0,0.00013698,2]
[360933994,1747156233691,-578.900698,0.00013698,2]
[360933995,1747156233700,-578.900698,0.00013698,2]
[360933996,1747156233710,-151.0,0.00013698,2]
[360933997,1747156233720,-151.0,0.00013698,2]
[360933998,1747156233730,-400.0,0.00013698,2]
[360933999,1747156233740,-578.900698,0.00013698,2]
[360934000,1747156233749,-400.0,0.00013698,2]
[360934001,1747156233759,-578.900698,0.00013698,2]
[360934002,1747156233768,-578.900698,0.00013698,2]
[360934003,1747156233778,-400.0,0.00013698,2]
[360934004,1747156233788,-685.82,0.00013698,2]
[360934005,1747156233798,-400.0,0.00013698,2]
[360934006,1747156233808,-400.0,0.00013698,2]
[360934007,1747156233818,-400.0,0.00013698,2]
[360934008,1747156233828,-400.0,0.00013698,2]
[360934009,1747156233837,-151.0,0.00013698,2]
[360934010,1747156233846,-151.0,0.00013698,2]
[360934011,1747156233856,-400.0,0.00013698,2]
[360934012,1747156233865,-400.0,0.00013698,2]
[360934013,1747156233875,-400.0,0.00013698,2]
[360934014,1747156233884,-403.41280074,0.00013698,2]
[360934015,1747156233894,-400.0,0.00013698,2]
[360934016,1747156233903,-400.0,0.00013698,2]
[360934017,1747156233912,-151.0,0.00013698,2]
[360934018,1747156233922,-151.0,0.00013698,2]
[360934019,1747156233932,-151.0,0.00013698,2]
[360934020,1747156233942,-400.0,0.00013698,2]
[360934021,1747156233951,-400.0,0.00013698,2]
[360934022,1747156233960,-400.0,0.00013698,2]
[360934023,1747156233971,-400.0,0.00013698,2]
[360934024,1747156233981,-400.0,0.00013698,2]
[360934025,1747156233992,-501.5237928,0.00013698,2]
[360934026,1747156234002,-514.83076824,0.00013698,2]
[360934027,1747156234011,-1418.8,0.00013698,2]
[360934028,1747156234021,-400.0,0.00013698,2]
[360934029,1747156234030,-400.0,0.00013698,2]
[360934030,1747156234041,-165.75255,0.00013698,2]
[360934031,1747156234051,-400.0,0.00013698,2]
[360934032,1747156234065,-165.75255,0.00013698,2]
[360934033,1747156234076,-165.75255,0.00013698,2]
[360934034,1747156234086,-310.34737314,0.00013698,2]
[360934035,1747156234096,-165.75255,0.00013698,2]
[360934036,1747156234107,-165.75255,0.00013698,2]
[360934037,1747156234118,-165.75255,0.00013698,2]
[360934038,1747156234129,-400.0,0.00013698,2]
[360934039,1747156234140,-671.08,0.00013698,2]
[360934040,1747156234151,-400.0,0.00013698,2]
[360934041,1747156234161,-400.0,0.00013698,2]
[360934042,1747156234171,-406.57,0.00013698,2]
[360934043,1747156234181,-400.0,0.00013698,2]
[360934044,1747156234192,-768.78,0.00013698,2]
[360934045,1747156234201,-625.91,0.00013698,2]
[360934046,1747156234211,-151.0,0.00013698,2]
[360934047,1747156234221,-151.0,0.00013698,2]
[360934048,1747156234231,-400.0,0.00013698,2]
[360934049,1747156234242,-400.0,0.00013698,2]
[360934050,1747156234252,-613.61,0.00013698,2]
[360934051,1747156234263,-630.77,0.00013698,2]
[360934052,1747156234273,-400.0,0.00013698,2]
[360934053,1747156234283,-400.0,0.00013698,2]
[360934054,1747156234292,-400.0,0.00013698,2]
[360934055,1747156234302,-400.0,0.00013698,2]
[360934056,1747156234311,-400.0,0.00013698,2]
[360934057,1747156234321,-400.0,0.00013698,2]
[360934058,1747156234331,-400.0,0.00013698,2]
[360934059,1747156234341,-400.0,0.00013698,2]
[360934060,1747156234351,-400.0,0.00013698,2]
[360934061,1747156234361,-400.0,0.00013698,2]
[360934062,1747156234371,-400.0,0.00013698,2]
[360934063,1747156234381,-400.0,0.00013698,2]
[360934064,1747156234391,-400.0,0.00013698,2]
[360934065,1747156234400,-400.0,0.00013698,2]
[360934066,1747156234409,-1412.18,0.00013698,2]
[360934067,1747156234421,-400.0,0.00013698,2]
[360934068,1747156234431,-400.0,0.00013698,2]
[360934069,1747156234441,-400.0,0.00013698,2]
[360934070,1747156234450,-400.0,0.00013698,2]
[360934071,1747156234459,-400.0,0.00013698,2]
[360934072,1747156234469,-156.92885888,0.00013698,2]
[360934073,1747156234483,-400.0,0.00013698,2]
[360934074,1747156234496,-400.0,0.00013698,2]
[360934075,1747156234507,-400.0,0.00013698,2]
[360934076,1747156234517,-400.0,0.00013698,2]